[Event "Live Chess"]
[Site "Chess.com"]
[Date "2023.09.16"]
[Round "-"]
[White "fernanndodod"]
[Black "xadrecarloso"]
[Result "1-0"]
[WhiteElo "1980"]
[BlackElo "937"]
[TimeControl "900+5"]
[EndTime "6:31:45 PDT"]
[Termination "fernanndodod venceu por desistência"]

1. e4 {[%clk 0:15:03.1]} 1... c5 {[%clk 0:15:03.6]} 2. Nf3 {[%clk 0:15:06.8]}
2... a6 {[%clk 0:15:06.8]} 3. d4 {[%clk 0:15:09]} 3... cxd4 {[%clk 0:15:09.2]}
4. Nxd4 {[%clk 0:15:13.9]} 4... Nf6 {[%clk 0:15:02.8]} 5. Nc3 {[%clk 0:15:16.2]}
5... b5 {[%clk 0:14:59.6]} 6. a3 {[%clk 0:15:16.2]} 6... Bb7 {[%clk 0:15:03.1]}
7. Bd3 {[%clk 0:15:16.6]} 7... g6 {[%clk 0:15:02.7]} 8. O-O {[%clk 0:15:18.2]}
8... Bg7 {[%clk 0:15:05.2]} 9. Be3 {[%clk 0:15:18.6]} 9... Ng4 {[%clk
0:14:44.9]} 10. Qxg4 {[%clk 0:15:19]} 10... h6 {[%clk 0:14:17.6]} 11. Rad1
{[%clk 0:14:46.8]} 1-0

[Event "Live Chess"]
[Site "Chess.com"]
[Date "2023.09.16"]
[Round "-"]
[White "mary260210"]
[Black "Giulliajapa007"]
[Result "1/2-1/2"]
[WhiteElo "853"]
[BlackElo "995"]
[TimeControl "900+5"]
[EndTime "6:32:11 PDT"]
[Termination "Partida empatada - material insuficiente"]

1. d4 {[%clk 0:15:03.4]} 1... d5 {[%clk 0:15:03.1]} 2. Nc3 {[%clk 0:15:07.1]}
2... Nf6 {[%clk 0:15:02.3]} 3. Nf3 {[%clk 0:15:07.7]} 3... Nc6 {[%clk
0:14:54.7]} 4. Bg5 {[%clk 0:15:07.3]} 4... h6 {[%clk 0:14:54.2]} 5. Bxf6 {[%clk
0:15:10.6]} 5... exf6 {[%clk 0:14:54.9]} 6. Qd2 {[%clk 0:15:05.6]} 6... Be6
{[%clk 0:14:46.7]} 7. e4 {[%clk 0:15:06]} 7... dxe4 {[%clk 0:14:47.3]} 8. Nxe4
{[%clk 0:15:09.5]} 8... Qd7 {[%clk 0:14:47.3]} 9. O-O-O {[%clk 0:15:03.3]} 9...
O-O-O {[%clk 0:14:29.6]} 10. Nc5 {[%clk 0:14:53.7]} 10... Bxc5 {[%clk
0:14:25.5]} 11. dxc5 {[%clk 0:14:56.7]} 11... Qxd2+ {[%clk 0:13:54.4]} 12. Rxd2
{[%clk 0:14:56.3]} 12... Bxa2 {[%clk 0:13:55.9]} 13. Rxd8+ {[%clk 0:14:56.2]}
13... Rxd8 {[%clk 0:13:58.8]} 14. Bb5 {[%clk 0:14:53.4]} 14... Nb4 {[%clk
0:13:47.7]} 15. Re1 {[%clk 0:14:14.8]} 15... a6 {[%clk 0:13:45.9]} 16. Ba4
{[%clk 0:14:05]} 16... b5 {[%clk 0:13:47.3]} 17. cxb6 {[%clk 0:14:07.2]} 17...
cxb6 {[%clk 0:13:50.5]} 18. Re7 {[%clk 0:13:47.5]} 18... Bd5 {[%clk 0:13:40.6]}
19. Bb3 {[%clk 0:13:38.6]} 19... Bxb3 {[%clk 0:13:25.4]} 20. cxb3 {[%clk
0:13:40.8]} 20... Nd3+ {[%clk 0:13:24.5]} 21. Kc2 {[%clk 0:13:40.2]} 21... Nxf2
{[%clk 0:13:26]} 22. Rxf7 {[%clk 0:13:42.1]} 22... g5 {[%clk 0:13:14.8]} 23.
Rxf6 {[%clk 0:13:43]} 23... Ng4 {[%clk 0:13:09.3]} 24. Rxb6 {[%clk 0:13:42.7]}
24... Ne3+ {[%clk 0:13:06.4]} 25. Kc3 {[%clk 0:13:42.8]} 25... Nxg2 {[%clk
0:12:57.4]} 26. Rxh6 {[%clk 0:13:43.7]} 26... Kb7 {[%clk 0:12:41.7]} 27. Nxg5
{[%clk 0:13:43.2]} 27... Rc8+ {[%clk 0:12:42.3]} 28. Kb4 {[%clk 0:13:41.7]}
28... Ne3 {[%clk 0:12:40.9]} 29. Ka5 {[%clk 0:13:39.6]} 29... Rc5+ {[%clk
0:12:39.8]} 30. Kb4 {[%clk 0:13:32]} 30... Rxg5 {[%clk 0:12:43]} 31. Rh3 {[%clk
0:13:31.4]} 31... Nc2+ {[%clk 0:12:37.7]} 32. Kc3 {[%clk 0:13:32.5]} 32... Rc5+
{[%clk 0:12:27.3]} 33. Kd2 {[%clk 0:13:32.3]} 33... Nd4 {[%clk 0:12:24.9]} 34.
Rc3 {[%clk 0:13:21.1]} 34... Rd5 {[%clk 0:12:14.8]} 35. Ke3 {[%clk 0:13:16.3]}
35... Nf5+ {[%clk 0:12:07.3]} 36. Ke4 {[%clk 0:13:17.9]} 36... Ne7 {[%clk
0:12:03.9]} 37. Rd3 {[%clk 0:13:14.1]} 37... Rh5 {[%clk 0:11:23.4]} 38. Rd2
{[%clk 0:13:11.3]} 38... Rh4+ {[%clk 0:11:21]} 39. Kf3 {[%clk 0:13:12.9]} 39...
Rh3+ {[%clk 0:11:19.5]} 40. Kg2 {[%clk 0:13:15.6]} 40... Rxb3 {[%clk 0:11:23]}
41. Rd7+ {[%clk 0:13:18.9]} 41... Kc6 {[%clk 0:11:21.5]} 42. Rxe7 {[%clk
0:13:22.7]} 42... Rxb2+ {[%clk 0:11:25.5]} 43. Kh3 {[%clk 0:13:24.7]} 43... Kc5
{[%clk 0:11:16.3]} 44. Re6 {[%clk 0:13:25]} 44... Rb3+ {[%clk 0:11:13.6]} 45.
Kg2 {[%clk 0:13:25.6]} 45... Ra3 {[%clk 0:11:12.9]} 46. h4 {[%clk 0:13:28]}
46... Kd5 {[%clk 0:11:15.1]} 47. Rh6 {[%clk 0:13:29.6]} 47... a5 {[%clk
0:11:13]} 48. h5 {[%clk 0:13:33.9]} 48... Ra2+ {[%clk 0:11:15.6]} 49. Kg3 {[%clk
0:13:36.8]} 49... Rb2 {[%clk 0:11:17.9]} 50. Kg4 {[%clk 0:13:41]} 50... Rg2+
{[%clk 0:11:20.9]} 51. Kf5 {[%clk 0:13:44.3]} 51... a4 {[%clk 0:11:24.3]} 52.
Rh8 {[%clk 0:13:45.9]} 52... a3 {[%clk 0:11:24.6]} 53. Ra8 {[%clk 0:13:49.1]}
53... Rf2+ {[%clk 0:11:21.3]} 54. Kg4 {[%clk 0:13:51.8]} 54... Ra2 {[%clk
0:11:19.2]} 55. h6 {[%clk 0:13:55.2]} 55... Rh2 {[%clk 0:11:21.6]} 56. Kg5
{[%clk 0:13:57.7]} 56... a2 {[%clk 0:11:25]} 57. Rxa2 {[%clk 0:13:59.3]} 57...
Rxa2 {[%clk 0:11:27.4]} 58. Kg6 {[%clk 0:14:03.9]} 58... Ra6+ {[%clk 0:11:28.2]}
59. Kh5 {[%clk 0:14:06.8]} 59... Ke5 {[%clk 0:11:29.5]} 60. h7 {[%clk
0:14:10.5]} 60... Ra8 {[%clk 0:11:29.6]} 61. Kg6 {[%clk 0:14:13.3]} 61... Rh8
{[%clk 0:11:27.4]} 62. Kg7 {[%clk 0:14:16]} 62... Rxh7+ {[%clk 0:11:30.6]} 63.
Kxh7 {[%clk 0:14:20.2]} 1/2-1/2

[Event "Live Chess"]
[Site "Chess.com"]
[Date "2023.09.16"]
[Round "-"]
[White "MateusLuan08"]
[Black "lucasportolelis"]
[Result "0-1"]
[WhiteElo "1564"]
[BlackElo "1687"]
[TimeControl "900+5"]
[EndTime "6:32:21 PDT"]
[Termination "lucasportolelis venceu por desistência"]

1. e4 {[%clk 0:15:02.5]} 1... e5 {[%clk 0:15:04]} 2. Nf3 {[%clk 0:15:05.4]} 2...
Nc6 {[%clk 0:15:07.8]} 3. d4 {[%clk 0:14:50.9]} 3... exd4 {[%clk 0:15:09.9]} 4.
Nxd4 {[%clk 0:14:33.9]} 4... Nf6 {[%clk 0:15:13.3]} 5. Nc3 {[%clk 0:14:32.9]}
5... Bc5 {[%clk 0:15:09.2]} 6. Be3 {[%clk 0:14:36.1]} 6... Bb6 {[%clk 0:15:11]}
7. Bc4 {[%clk 0:14:28.2]} 7... d6 {[%clk 0:15:05.1]} 8. O-O {[%clk 0:14:27.1]}
8... O-O {[%clk 0:15:07.3]} 9. Nxc6 {[%clk 0:14:26.8]} 9... bxc6 {[%clk
0:15:09.5]} 10. Qd2 {[%clk 0:14:19.2]} 10... Re8 {[%clk 0:14:40.7]} 11. f3
{[%clk 0:14:05.1]} 11... Be6 {[%clk 0:14:11.8]} 12. Bxe6 {[%clk 0:13:50]} 12...
Rxe6 {[%clk 0:14:14.2]} 13. Rad1 {[%clk 0:13:46.5]} 13... Qe7 {[%clk 0:13:52.3]}
14. Rfe1 {[%clk 0:13:33]} 14... Rd8 {[%clk 0:13:34.9]} 15. Na4 {[%clk 0:13:27]}
15... Bxe3+ {[%clk 0:13:31.4]} 16. Qxe3 {[%clk 0:13:28.7]} 16... c5 {[%clk
0:12:55.3]} 17. Nc3 {[%clk 0:10:49.9]} 17... Rb8 {[%clk 0:12:28.5]} 18. b3
{[%clk 0:10:49.4]} 18... Rb4 {[%clk 0:11:54.1]} 19. Qf2 {[%clk 0:10:06.7]} 19...
c6 {[%clk 0:10:27.6]} 20. Re2 {[%clk 0:09:36.1]} 20... Rb8 {[%clk 0:09:40.1]}
21. Red2 {[%clk 0:09:35.1]} 21... h6 {[%clk 0:09:38.8]} 22. Qg3 {[%clk 0:09:25]}
22... Rd8 {[%clk 0:09:20.5]} 23. Ne2 {[%clk 0:09:26.7]} 23... Nh5 {[%clk
0:08:59.9]} 24. Qf2 {[%clk 0:09:12.3]} 24... Rg6 {[%clk 0:08:29.1]} 25. g3
{[%clk 0:08:28.9]} 25... Qe5 {[%clk 0:07:26.9]} 26. Qg2 {[%clk 0:07:43.3]} 26...
d5 {[%clk 0:06:44.4]} 27. Kf2 {[%clk 0:06:50.4]} 27... d4 {[%clk 0:06:09]} 28.
f4 {[%clk 0:06:41.7]} 28... Qe7 {[%clk 0:06:04.5]} 29. e5 {[%clk 0:06:27.9]}
29... Qe6 {[%clk 0:04:36.6]} 30. c3 {[%clk 0:06:09.2]} 30... f6 {[%clk
0:02:38.9]} 31. cxd4 {[%clk 0:06:00.9]} 31... c4 {[%clk 0:01:58.7]} 32. exf6
{[%clk 0:05:47.9]} 32... Nxf6 {[%clk 0:01:59.3]} 33. bxc4 {[%clk 0:05:40.4]}
33... Ne4+ {[%clk 0:01:22.9]} 34. Kf1 {[%clk 0:05:33.9]} 34... Nxd2+ {[%clk
0:01:24.9]} 35. Rxd2 {[%clk 0:05:38.8]} 35... Qxc4 {[%clk 0:01:16.8]} 36. Qe4
{[%clk 0:05:36.8]} 36... Qe6 {[%clk 0:01:13.4]} 37. Qd3 {[%clk 0:05:26.2]} 37...
Qh3+ {[%clk 0:01:04.4]} 38. Kg1 {[%clk 0:05:29.3]} 38... Rgd6 {[%clk 0:01:01.1]}
39. Qc4+ {[%clk 0:05:22.6]} 39... Qe6 {[%clk 0:01:03.5]} 40. Qa4 {[%clk
0:05:18.3]} 40... Qe3+ {[%clk 0:01:00.9]} 41. Kf1 {[%clk 0:05:20.1]} 41... Qxd2
{[%clk 0:01:04.5]} 0-1

[Event "Live Chess"]
[Site "Chess.com"]
[Date "2023.09.16"]
[Round "-"]
[White "zxsimon"]
[Black "NavarroChess09"]
[Result "1-0"]
[WhiteElo "1488"]
[BlackElo "1317"]
[TimeControl "900+5"]
[EndTime "6:32:25 PDT"]
[Termination "zxsimon venceu por desistência"]

1. e4 {[%clk 0:15:02.6]} 1... Nc6 {[%clk 0:15:00.3]} 2. Nf3 {[%clk 0:15:06.2]}
2... d6 {[%clk 0:15:03.2]} 3. Bc4 {[%clk 0:15:09.5]} 3... Nf6 {[%clk 0:15:06]}
4. h3 {[%clk 0:15:07.5]} 4... e5 {[%clk 0:15:04.7]} 5. d3 {[%clk 0:15:11.6]}
5... Be6 {[%clk 0:15:02.9]} 6. Bxe6 {[%clk 0:15:12.2]} 6... fxe6 {[%clk
0:15:07.8]} 7. Nc3 {[%clk 0:15:15.8]} 7... g6 {[%clk 0:15:10.4]} 8. Bg5 {[%clk
0:15:18.5]} 8... Bg7 {[%clk 0:15:14]} 9. Qd2 {[%clk 0:15:20.4]} 9... O-O {[%clk
0:15:16.8]} 10. a3 {[%clk 0:15:21.7]} 10... d5 {[%clk 0:15:10.3]} 11. exd5
{[%clk 0:15:24.4]} 11... exd5 {[%clk 0:15:12.1]} 12. O-O-O {[%clk 0:15:10.5]}
12... d4 {[%clk 0:15:12.5]} 13. Ne2 {[%clk 0:15:04.7]} 13... Qd5 {[%clk
0:15:07]} 14. Kb1 {[%clk 0:15:04.6]} 14... a5 {[%clk 0:15:08.1]} 15. Bh6 {[%clk
0:15:02.4]} 15... b5 {[%clk 0:15:09.3]} 16. Bxg7 {[%clk 0:15:05.8]} 16... Kxg7
{[%clk 0:15:12.6]} 17. c3 {[%clk 0:15:03]} 17... b4 {[%clk 0:15:03.6]} 18. c4
{[%clk 0:15:01.8]} 18... Qc5 {[%clk 0:14:58.5]} 19. a4 {[%clk 0:14:36.2]} 19...
b3 {[%clk 0:14:58.1]} 20. Nc1 {[%clk 0:14:39.5]} 20... Rfb8 {[%clk 0:14:53.5]}
21. h4 {[%clk 0:14:36.3]} 21... Rb4 {[%clk 0:14:42.9]} 22. h5 {[%clk 0:14:28.6]}
22... Rab8 {[%clk 0:14:39.1]} 23. h6+ {[%clk 0:14:30]} 23... Kf7 {[%clk
0:14:35.9]} 24. Ng5+ {[%clk 0:14:30.7]} 24... Ke7 {[%clk 0:14:32.2]} 25. f4
{[%clk 0:14:31]} 25... Rxa4 {[%clk 0:14:32.3]} 26. fxe5 {[%clk 0:14:32.9]} 26...
Nxe5 {[%clk 0:14:29.2]} 27. Rde1 {[%clk 0:14:33.9]} 27... Kd6 {[%clk 0:14:30.3]}
28. Qf4 {[%clk 0:14:35.6]} 28... Nd7 {[%clk 0:14:28.6]} 29. Nf7+ {[%clk
0:14:30.5]} 29... Kc6 {[%clk 0:14:16]} 30. Nxe5+ {[%clk 0:14:31.2]} 30... Nxe5
{[%clk 0:14:17.5]} 31. Rxe5 {[%clk 0:14:22.3]} 31... Qd6 {[%clk 0:14:13]} 32.
Qe4+ {[%clk 0:14:24.9]} 32... Kd7 {[%clk 0:14:04.3]} 33. Rd5 {[%clk 0:14:27.2]}
33... Qxd5 {[%clk 0:14:01.1]} 34. Qxd5+ {[%clk 0:14:29.5]} 34... Kc8 {[%clk
0:14:01.2]} 35. Qxd4 {[%clk 0:14:09]} 35... Rbb4 {[%clk 0:13:58.1]} 36. Qg4+
{[%clk 0:14:10.4]} 36... Kb7 {[%clk 0:13:56.1]} 37. Qe4+ {[%clk 0:14:14]} 37...
c6 {[%clk 0:13:58.9]} 38. Qe7+ {[%clk 0:14:17.1]} 38... Kb6 {[%clk 0:14:02.9]}
39. Qxh7 {[%clk 0:14:18]} 39... g5 {[%clk 0:13:26.9]} 40. Qf5 {[%clk 0:14:15.1]}
40... Ra2 {[%clk 0:13:22.7]} 41. Nxa2 {[%clk 0:14:15.3]} 41... bxa2+ {[%clk
0:13:23.2]} 42. Kxa2 {[%clk 0:14:14.4]} 42... a4 {[%clk 0:13:26.6]} 43. h7
{[%clk 0:14:11.8]} 1-0

[Event "Live Chess"]
[Site "Chess.com"]
[Date "2023.09.16"]
[Round "-"]
[White "gu1c0rrea"]
[Black "dani_reitas"]
[Result "1-0"]
[WhiteElo "807"]
[BlackElo "1008"]
[TimeControl "900+5"]
[EndTime "6:32:33 PDT"]
[Termination "gu1c0rrea venceu por desistência"]

1. e4 {[%clk 0:15:03.1]} 1... e6 {[%clk 0:15:03.8]} 2. d4 {[%clk 0:15:06.7]}
2... d5 {[%clk 0:15:07.7]} 3. Nc3 {[%clk 0:15:11.3]} 3... c5 {[%clk 0:15:11.3]}
4. Be3 {[%clk 0:15:09]} 4... cxd4 {[%clk 0:15:08.2]} 5. Bxd4 {[%clk 0:15:13]}
5... Nc6 {[%clk 0:15:12.5]} 6. Be3 {[%clk 0:15:12.4]} 6... Nf6 {[%clk
0:15:10.5]} 7. exd5 {[%clk 0:14:52.6]} 7... Nxd5 {[%clk 0:15:08.8]} 8. Nxd5
{[%clk 0:14:50.6]} 8... exd5 {[%clk 0:15:12.4]} 9. Bf4 {[%clk 0:14:44.1]} 9...
Be7 {[%clk 0:15:14.1]} 10. Nf3 {[%clk 0:14:24.9]} 10... O-O {[%clk 0:15:16.9]}
11. Bd3 {[%clk 0:14:23.5]} 11... Be6 {[%clk 0:15:11.7]} 12. Ne5 {[%clk
0:14:22.2]} 12... Nxe5 {[%clk 0:15:08.9]} 13. Bxe5 {[%clk 0:14:25.4]} 13... Bd6
{[%clk 0:15:10.3]} 14. Qh5 {[%clk 0:14:17.2]} 14... h6 {[%clk 0:14:22.9]} 15.
Qe2 {[%clk 0:13:53.8]} 15... Bxe5 {[%clk 0:14:22.7]} 16. Qxe5 {[%clk 0:13:55.9]}
16... Qb6 {[%clk 0:14:21.6]} 17. b3 {[%clk 0:13:54.4]} 17... Qb4+ {[%clk
0:14:21.5]} 18. Ke2 {[%clk 0:13:42.1]} 18... Rac8 {[%clk 0:14:15.9]} 19. Rac1
{[%clk 0:13:15.5]} 19... Qa3 {[%clk 0:13:54.5]} 20. Qa1 {[%clk 0:12:56.1]} 20...
Rc7 {[%clk 0:13:44]} 21. Rhe1 {[%clk 0:12:45.7]} 21... Bd7 {[%clk 0:13:40.9]}
22. Kf1 {[%clk 0:12:42.6]} 22... Qa5 {[%clk 0:13:41.4]} 23. Re7 {[%clk
0:12:39.8]} 23... Bc6 {[%clk 0:12:55.2]} 24. Rce1 {[%clk 0:12:20.4]} 24... Rxe7
{[%clk 0:12:49.9]} 25. Rxe7 {[%clk 0:12:22]} 25... Bb5 {[%clk 0:12:52.1]} 26. c4
{[%clk 0:12:17]} 26... dxc4 {[%clk 0:12:48.8]} 27. bxc4 {[%clk 0:12:18.1]} 27...
Qb6 {[%clk 0:12:29.8]} 28. Qe1 {[%clk 0:12:13.1]} 28... Qc6 {[%clk 0:12:07.2]}
29. cxb5 {[%clk 0:12:12.2]} 29... Qc8 {[%clk 0:12:07.7]} 30. a4 {[%clk
0:11:57.3]} 30... Qd8 {[%clk 0:12:03]} 31. Qe4 {[%clk 0:11:57.2]} 31... g6
{[%clk 0:11:05.1]} 32. Rxb7 {[%clk 0:11:57]} 32... Re8 {[%clk 0:11:01.2]} 33.
Qc4 {[%clk 0:11:48.5]} 33... Qf6 {[%clk 0:10:44.5]} 34. g3 {[%clk 0:11:23.5]}
34... Re7 {[%clk 0:10:16.9]} 35. Rb8+ {[%clk 0:11:19.5]} 35... Kg7 {[%clk
0:10:13.2]} 36. a5 {[%clk 0:10:56.5]} 36... Qf3 {[%clk 0:10:14.8]} 37. Qc3+
{[%clk 0:10:40.2]} 37... Kh7 {[%clk 0:10:17.5]} 38. Bxg6+ {[%clk 0:10:37.2]}
38... Kxg6 {[%clk 0:10:19.6]} 39. Qxf3 {[%clk 0:10:41.3]} 1-0

[Event "Live Chess"]
[Site "Chess.com"]
[Date "2023.09.16"]
[Round "-"]
[White "kesiavik"]
[Black "Ggavioli"]
[Result "0-1"]
[WhiteElo "1019"]
[BlackElo "1561"]
[TimeControl "900+5"]
[EndTime "6:33:30 PDT"]
[Termination "Ggavioli venceu por desistência"]

1. d4 {[%clk 0:15:02.8]} 1... c6 {[%clk 0:15:03.3]} 2. Nf3 {[%clk 0:15:06.8]}
2... d5 {[%clk 0:15:07.3]} 3. Bf4 {[%clk 0:15:10.7]} 3... Bg4 {[%clk 0:15:10.4]}
4. h3 {[%clk 0:15:14.1]} 4... Bxf3 {[%clk 0:15:14]} 5. exf3 {[%clk 0:15:18.4]}
5... Nf6 {[%clk 0:15:16.3]} 6. Bd3 {[%clk 0:15:22.7]} 6... Nbd7 {[%clk
0:15:19.4]} 7. c3 {[%clk 0:15:26.8]} 7... e6 {[%clk 0:15:23.4]} 8. Nd2 {[%clk
0:15:30.6]} 8... Nb6 {[%clk 0:15:21.3]} 9. O-O {[%clk 0:15:31]} 9... Bd6 {[%clk
0:15:24.9]} 10. Bxd6 {[%clk 0:15:34.7]} 10... Qxd6 {[%clk 0:15:29.8]} 11. c4
{[%clk 0:15:36.8]} 11... dxc4 {[%clk 0:15:32.1]} 12. Bxc4 {[%clk 0:15:40.2]}
12... Qxd4 {[%clk 0:15:32.4]} 13. b3 {[%clk 0:15:40.5]} 13... O-O {[%clk
0:15:30.1]} 14. Re1 {[%clk 0:15:40.6]} 14... Nxc4 {[%clk 0:15:31.7]} 15. bxc4
{[%clk 0:15:43.9]} 15... Nd7 {[%clk 0:15:27.4]} 16. Qc2 {[%clk 0:15:47.2]} 16...
Rfd8 {[%clk 0:15:19.5]} 17. Ne4 {[%clk 0:15:50.8]} 17... Nc5 {[%clk 0:15:17.7]}
18. Ng5 {[%clk 0:15:54]} 18... Qd3 {[%clk 0:15:05.2]} 19. Qc1 {[%clk 0:15:48.6]}
19... h6 {[%clk 0:15:02]} 20. Ne4 {[%clk 0:15:48]} 20... Nxe4 {[%clk 0:15:04.9]}
21. fxe4 {[%clk 0:15:49]} 21... Rd4 {[%clk 0:14:57.9]} 0-1

[Event "Live Chess"]
[Site "Chess.com"]
[Date "2023.09.16"]
[Round "-"]
[White "InfinityDelas"]
[Black "daniel-drummond"]
[Result "0-1"]
[WhiteElo "753"]
[BlackElo "1542"]
[TimeControl "900+5"]
[EndTime "6:33:39 PDT"]
[Termination "daniel-drummond venceu por xeque-mate"]

1. e4 {[%clk 0:14:55.9]} 1... e5 {[%clk 0:15:04.3]} 2. Nf3 {[%clk 0:14:58.1]}
2... Nc6 {[%clk 0:15:08.6]} 3. d3 {[%clk 0:14:58.9]} 3... Nf6 {[%clk 0:15:10]}
4. Be2 {[%clk 0:15:02.3]} 4... Bc5 {[%clk 0:15:10.1]} 5. O-O {[%clk 0:15:05.4]}
5... d6 {[%clk 0:15:12.9]} 6. Bg5 {[%clk 0:15:08.4]} 6... h6 {[%clk 0:15:14.7]}
7. Bxf6 {[%clk 0:15:11.9]} 7... Qxf6 {[%clk 0:15:16.8]} 8. Nc3 {[%clk
0:15:14.5]} 8... Be6 {[%clk 0:15:17.1]} 9. Nd5 {[%clk 0:15:17.3]} 9... Bxd5
{[%clk 0:15:20.2]} 10. exd5 {[%clk 0:15:22.2]} 10... Nd4 {[%clk 0:15:19.1]} 11.
Nxd4 {[%clk 0:15:24.2]} 11... Bxd4 {[%clk 0:15:24]} 12. c3 {[%clk 0:15:24.2]}
12... Bb6 {[%clk 0:15:21.2]} 13. Bf3 {[%clk 0:15:18.2]} 13... O-O {[%clk
0:15:23.8]} 14. Qe2 {[%clk 0:15:00.5]} 14... Rfe8 {[%clk 0:15:16.8]} 15. a4
{[%clk 0:14:58.9]} 15... a6 {[%clk 0:15:17.9]} 16. Rfd1 {[%clk 0:14:54.1]} 16...
Bc5 {[%clk 0:15:18.7]} 17. Qe4 {[%clk 0:14:49.5]} 17... Rac8 {[%clk 0:15:08.4]}
18. d4 {[%clk 0:14:52.1]} 18... exd4 {[%clk 0:15:11.2]} 19. cxd4 {[%clk
0:14:56.1]} 19... Rxe4 {[%clk 0:15:14.3]} 20. Bxe4 {[%clk 0:14:55.1]} 20... Bxd4
{[%clk 0:15:17.9]} 21. Rf1 {[%clk 0:14:55.4]} 21... Bxb2 {[%clk 0:15:20.8]} 22.
Rab1 {[%clk 0:14:59.3]} 22... c6 {[%clk 0:15:14]} 23. dxc6 {[%clk 0:14:56.7]}
23... bxc6 {[%clk 0:15:18.9]} 24. Bf3 {[%clk 0:14:54.5]} 24... Be5 {[%clk
0:15:18.8]} 25. Rb6 {[%clk 0:14:54.2]} 25... Qh4 {[%clk 0:15:11.2]} 26. h3
{[%clk 0:14:51.8]} 26... a5 {[%clk 0:15:05.3]} 27. Bxc6 {[%clk 0:14:49.3]} 27...
Qc4 {[%clk 0:14:57.6]} 28. Bb5 {[%clk 0:14:39.1]} 28... Qf4 {[%clk 0:14:51.4]}
29. g3 {[%clk 0:14:35.3]} 29... Qf5 {[%clk 0:14:53.1]} 30. Kh2 {[%clk
0:14:35.1]} 30... Bxg3+ {[%clk 0:14:55.3]} 31. Kxg3 {[%clk 0:14:34.4]} 31...
Qe5+ {[%clk 0:14:50.1]} 32. Kg2 {[%clk 0:14:35.4]} 32... Qe4+ {[%clk 0:14:43.8]}
33. Kg1 {[%clk 0:14:31.2]} 33... Rc5 {[%clk 0:14:33.6]} 34. Rxd6 {[%clk
0:14:27.2]} 34... Rg5+ {[%clk 0:14:34.6]} 35. Kh2 {[%clk 0:14:14.6]} 35... Qg2#
{[%clk 0:14:37]} 0-1

[Event "Live Chess"]
[Site "Chess.com"]
[Date "2023.09.16"]
[Round "-"]
[White "fernanndodod"]
[Black "mary260210"]
[Result "1-0"]
[WhiteElo "1980"]
[BlackElo "853"]
[TimeControl "900+5"]
[EndTime "6:33:50 PDT"]
[Termination "fernanndodod venceu por xeque-mate"]

1. e4 {[%clk 0:15:03.1]} 1... e5 {[%clk 0:15:03.8]} 2. Nf3 {[%clk 0:15:05.4]}
2... Nf6 {[%clk 0:15:07.3]} 3. d4 {[%clk 0:15:08.7]} 3... exd4 {[%clk
0:15:08.9]} 4. e5 {[%clk 0:15:12.3]} 4... Nd5 {[%clk 0:15:07.3]} 5. Qxd4 {[%clk
0:15:15.7]} 5... c6 {[%clk 0:15:05.3]} 6. Bd2 {[%clk 0:15:08.1]} 6... Be7 {[%clk
0:15:04.9]} 7. Nc3 {[%clk 0:15:05.6]} 7... Nxc3 {[%clk 0:15:06.4]} 8. Bxc3
{[%clk 0:15:10.5]} 8... O-O {[%clk 0:15:02.3]} 9. Bc4 {[%clk 0:15:09.7]} 9... d6
{[%clk 0:15:00]} 10. exd6 {[%clk 0:15:11.2]} 10... Bxd6 {[%clk 0:15:02.4]} 11.
Qxg7# {[%clk 0:15:13.2]} 1-0

[Event "Live Chess"]
[Site "Chess.com"]
[Date "2023.09.16"]
[Round "-"]
[White "migu345"]
[Black "vitinho_lawliet"]
[Result "1-0"]
[WhiteElo "1004"]
[BlackElo "943"]
[TimeControl "900+5"]
[EndTime "6:34:15 PDT"]
[Termination "migu345 venceu por xeque-mate"]

1. e4 {[%clk 0:15:02.9]} 1... e5 {[%clk 0:14:57.5]} 2. Nf3 {[%clk 0:15:06.5]}
2... Nc6 {[%clk 0:14:59]} 3. Bc4 {[%clk 0:15:09.9]} 3... Nh6 {[%clk 0:14:58.5]}
4. O-O {[%clk 0:15:11]} 4... a6 {[%clk 0:14:57.1]} 5. Nc3 {[%clk 0:15:09.4]}
5... b5 {[%clk 0:15:00.1]} 6. Bd5 {[%clk 0:15:11.8]} 6... Bb7 {[%clk 0:14:59]}
7. d3 {[%clk 0:15:01.6]} 7... Bb4 {[%clk 0:14:42]} 8. Bxh6 {[%clk 0:14:11.6]}
8... gxh6 {[%clk 0:14:41.7]} 9. Nxe5 {[%clk 0:14:07.2]} 9... Bxc3 {[%clk
0:14:38.7]} 10. Bxf7+ {[%clk 0:14:04.6]} 10... Kf8 {[%clk 0:14:38.6]} 11. Nxc6
{[%clk 0:14:04.1]} 11... Bxc6 {[%clk 0:14:41.7]} 12. Qf3 {[%clk 0:14:07]} 12...
Bxb2 {[%clk 0:14:32]} 13. Bd5+ {[%clk 0:14:06.1]} 13... Ke8 {[%clk 0:14:29.8]}
14. Qf7# {[%clk 0:14:09.4]} 1-0

[Event "Live Chess"]
[Site "Chess.com"]
[Date "2023.09.16"]
[Round "-"]
[White "danilo655"]
[Black "RickBrasil"]
[Result "0-1"]
[WhiteElo "720"]
[BlackElo "1867"]
[TimeControl "900+5"]
[EndTime "6:35:18 PDT"]
[Termination "RickBrasil venceu por desistência"]

1. e4 {[%clk 0:14:59.5]} 1... c6 {[%clk 0:14:47.1]} 2. d4 {[%clk 0:15:00.9]}
2... d5 {[%clk 0:14:52]} 3. e5 {[%clk 0:14:54.3]} 3... Bf5 {[%clk 0:14:55.6]} 4.
Bd3 {[%clk 0:14:48.6]} 4... Bxd3 {[%clk 0:14:58.5]} 5. Qxd3 {[%clk 0:14:50.4]}
5... e6 {[%clk 0:15:02.8]} 6. Nf3 {[%clk 0:14:49.6]} 6... Qb6 {[%clk 0:15:07.3]}
7. Nc3 {[%clk 0:14:31.4]} 7... Ne7 {[%clk 0:15:00.7]} 8. O-O {[%clk 0:14:23.1]}
8... Nd7 {[%clk 0:14:56.5]} 9. Re1 {[%clk 0:14:15.3]} 9... h5 {[%clk 0:14:50.6]}
10. h3 {[%clk 0:14:04.6]} 10... Nf5 {[%clk 0:14:49.5]} 11. Na4 {[%clk
0:13:23.4]} 11... Qa5 {[%clk 0:14:36.2]} 12. b3 {[%clk 0:12:41.1]} 12... b5
{[%clk 0:14:21]} 13. Bd2 {[%clk 0:12:37.5]} 13... Qc7 {[%clk 0:14:20.3]} 14. Nc3
{[%clk 0:11:57.5]} 14... a5 {[%clk 0:14:08.8]} 15. a4 {[%clk 0:11:02.7]} 15...
b4 {[%clk 0:14:11.9]} 16. Na2 {[%clk 0:11:01.1]} 16... Rb8 {[%clk 0:13:43.4]}
17. Ng5 {[%clk 0:10:32.8]} 17... c5 {[%clk 0:13:21.2]} 18. Qc3 {[%clk
0:09:57.8]} 18... bxc3 {[%clk 0:13:22.9]} 19. Bxc3 {[%clk 0:09:46.2]} 19... cxd4
{[%clk 0:13:24.2]} 20. Bd2 {[%clk 0:09:40.5]} 20... Be7 {[%clk 0:13:28.2]} 21.
Nf3 {[%clk 0:09:31]} 21... g5 {[%clk 0:13:08.8]} 22. Rac1 {[%clk 0:09:09]} 22...
g4 {[%clk 0:13:09.7]} 23. Nh2 {[%clk 0:08:30]} 23... Nxe5 {[%clk 0:13:08.4]} 24.
hxg4 {[%clk 0:08:02.9]} 24... hxg4 {[%clk 0:13:03.9]} 0-1